bitfinex-derivatives/quotes_ETHF0:USTF0_20260204
["timestamp","ask_amount","ask_price","bid_price","bid_amount"]
[1770189425697,2.39556899,2280.7,2279.6,2.03140932]
[1770189425900,2.52213148,2281.6,2279.6,10.78237069]
[1770189426099,2.52213148,2281.6,2279.6,2.14121932]
[1770189426303,2.52213148,2281.6,2279.6,0.10981]
[1770189426702,2.52585254,2281.6,2279.6,0.10981]
[1770189427899,2.52585254,2281.6,2279.7,0.1098]
[1770189428107,2.52213148,2281.4,2279.6,2.03140932]
[1770189428306,2.52213148,2281.4,2280.1,8.64115137]
[1770189428601,2.52213148,2281.4,2280.0,2.03140932]
[1770189428798,2.52213148,2281.4,2280.3,8.64115137]
[1770189429002,2.52213148,2281.4,2280.3,8.64633695]
[1770189429202,2.52213148,2281.4,2280.3,0.00518558]
[1770189430410,2.52213148,2281.0,2278.5,5.89479992]
[1770189430604,2.52213148,2281.0,2278.8,0.10985]
[1770189430806,2.52213148,2281.0,2278.9,8.64115137]
[1770189431005,2.52213148,2281.0,2279.1,8.64115137]
[1770189431408,2.52213148,2281.0,2279.2,8.64115137]
[1770189431913,2.52213148,2281.0,2279.3,8.64115137]
[1770189432110,2.52213148,2281.0,2279.2,8.64115137]
[1770189432813,2.52213148,2281.0,2279.3,8.64115137]
[1770189433116,2.52213148,2281.0,2279.1,8.64604567]
[1770189433814,2.52213148,2281.0,2279.4,8.64115137]
[1770189434214,2.52213148,2281.0,2279.6,8.64115137]
[1770189434515,2.52213148,2281.0,2279.4,8.64115137]
[1770189434809,2.52213148,2281.0,2279.8,8.64115137]
[1770189434810,6.91213148,2281.0,2279.8,8.64115137]
[1770189435016,2.52213148,2280.9,2279.9,8.64115137]
[1770189435312,2.52213148,2280.9,2279.6,8.64115137]
[1770189435614,2.52213148,2280.9,2279.7,8.64115137]
[1770189435919,2.52213148,2280.9,2279.4,0.10982]
[1770189436212,2.52213148,2280.9,2279.7,8.64115137]
[1770189436620,2.52213148,2280.9,2279.8,8.64115137]
[1770189436820,2.52213148,2280.9,2279.7,8.64115137]
[1770189437221,2.52213148,2280.9,2279.8,8.64115137]
[1770189437421,2.52213148,2280.9,2279.4,0.10982]
[1770189437723,2.52213148,2280.9,2279.7,8.64115137]
[1770189438119,2.52213148,2280.9,2279.8,8.64115137]
[1770189438320,2.52213148,2280.9,2279.5,8.64115137]
[1770189438821,2.52213148,2280.9,2279.6,8.64115137]
[1770189439018,2.52213148,2280.9,2279.5,8.64115137]
[1770189439423,2.52213148,2280.9,2279.6,8.64115137]
[1770189439722,2.52213148,2280.9,2279.5,8.64115137]
[1770189440120,2.52213148,2280.9,2279.4,0.10982]
[1770189440317,2.52213148,2280.9,2279.7,8.64115137]
[1770189440818,2.52213148,2280.9,2279.8,8.64115137]
[1770189441023,2.52213148,2280.9,2279.7,8.64115137]
[1770189441223,2.52213148,2280.9,2279.8,8.64115137]
[1770189441524,2.52213148,2280.9,2279.7,8.64115137]
[1770189441925,2.52213148,2280.9,2279.8,8.64115137]
[1770189442129,2.52213148,2280.9,2279.7,8.64115137]
[1770189443326,2.52213148,2280.9,2279.9,8.64115137]
[1770189443530,2.52213148,2280.9,2280.0,8.64115137]
[1770189443720,2.52213148,2280.9,2279.8,8.64115137]
[1770189444225,2.52213148,2280.9,2279.9,8.64115137]
[1770189444420,2.52213148,2280.9,2279.8,8.64115137]
[1770189444821,2.52213148,2280.9,2279.9,8.64115137]
[1770189445127,2.52213148,2280.9,2279.8,8.64115137]
[1770189445621,2.52213148,2280.9,2279.9,8.64115137]
[1770189445823,2.52213148,2280.9,2279.8,8.64115137]
[1770189446224,2.52213148,2280.9,2279.9,8.64115137]
[1770189446421,2.52213148,2280.9,2280.0,8.64115137]
[1770189446923,2.52213148,2280.9,2280.1,8.64115137]
[1770189447124,2.52213148,2280.9,2280.0,8.64115137]
[1770189447324,2.52213148,2280.9,2279.9,3.858]
[1770189448532,2.52213148,2280.9,2279.9,12.49915137]
[1770189450229,2.52213148,2280.9,2279.9,3.858]
[1770189450428,2.52213148,2280.9,2280.1,8.64115137]
[1770189450930,2.52213148,2280.9,2280.2,8.64115137]
[1770189451128,2.52213148,2280.9,2280.1,8.64115137]
[1770189451625,2.52213148,2280.9,2280.2,8.64115137]
[1770189451830,2.52213148,2280.9,2280.1,8.64115137]
[1770189452328,2.52213148,2280.9,2280.2,8.64115137]
[1770189452530,2.52213148,2280.9,2279.9,8.64115137]
[1770189452931,2.52213148,2280.9,2280.1,8.64115137]
[1770189453230,2.52213148,2280.9,2280.0,8.64115137]
[1770189453531,6.90769921,2280.8,2280.0,8.64115137]
[1770189453731,2.51869921,2280.7,2280.1,8.64115137]
[1770189453930,2.51869921,2280.7,2280.0,8.64115137]
[1770189454334,2.51869921,2280.7,2280.1,8.64115137]
[1770189454531,2.51869921,2280.7,2280.1,8.10903539]
[1770189454733,2.51869921,2280.7,2280.2,8.10903539]
[1770189455030,2.51869921,2280.7,2279.8,8.10903539]
[1770189455232,2.51869921,2280.7,2279.5,12.86585083]
[1770189455535,2.51869921,2280.7,2279.6,8.10903539]
[1770189455727,2.51869921,2280.7,2279.5,8.10903539]
[1770189456234,2.51869921,2280.7,2279.6,8.10903539]
[1770189456732,2.51869921,2280.7,2279.7,8.10903539]
[1770189456932,2.51869921,2280.7,2279.6,8.10903539]
[1770189457333,2.51869921,2280.7,2279.7,8.10903539]
[1770189457534,2.51869921,2280.7,2279.6,8.10903539]
[1770189457935,2.51869921,2280.7,2279.7,8.10903539]
[1770189458235,2.51869921,2280.7,2279.6,8.10903539]
[1770189458637,2.51869921,2280.7,2279.7,8.10903539]
[1770189459037,2.51869921,2280.7,2279.8,8.10903539]
[1770189459336,2.51869921,2280.7,2279.6,8.10903539]
[1770189460032,2.51869921,2280.7,2279.8,8.10903539]
[1770189460437,2.51869921,2280.7,2280.0,8.10903539]
[1770189460638,2.51869921,2280.7,2279.8,8.10903539]
[1770189460839,2.51869921,2280.7,2280.0,8.10903539]
[1770189461035,9.58565507,2281.2,2279.7,2.60599428]
[1770189461236,2.51869921,2281.5,2280.4,2.60599428]
[1770189461743,2.51869921,2281.5,2280.4,6.87428952]
[1770189461943,2.51869921,2281.5,2280.4,2.60599428]
[1770189463038,0.00372106,2281.6,2280.5,7.04522881]
[1770189463237,0.00372106,2281.6,2280.9,2.60599428]
[1770189463443,3.315,2281.8,2280.9,2.60599428]
[1770189463634,2.51869921,2282.3,2281.1,2.60599428]
[1770189463838,6.90769921,2282.3,2281.1,2.60599428]
[1770189464240,4.389,2282.3,2281.1,7.02415546]
[1770189464542,0.0043486,2282.3,2281.2,4.41810432]
[1770189464841,0.0043486,2282.3,2281.1,2.60949029]
[1770189465242,2.52304781,2282.3,2281.1,7.02736285]
[1770189465535,6.90429921,2282.2,2281.1,0.00349601]
[1770189465735,2.51869921,2282.1,2281.1,0.00349601]
[1770189466541,2.51869921,2281.9,2281.1,0.00349601]
[1770189466937,4.3856,2281.6,2281.1,0.00349601]
[1770189467141,2.51869921,2281.8,2281.1,0.00349601]
[1770189467337,6.90429921,2281.6,2281.1,0.00349601]
[1770189467641,2.51869921,2281.6,2281.1,0.00349601]
[1770189467836,4.3856,2281.5,2281.1,0.00349601]
[1770189468035,4.3856,2281.5,2280.5,2.60599428]
[1770189468241,2.51869921,2281.6,2280.4,2.60599428]
[1770189469042,6.90669921,2281.5,2280.4,0.00381608]
[1770189469237,2.51869921,2281.4,2280.4,0.00381608]
[1770189469542,2.51869921,2281.3,2280.4,0.00381608]
[1770189469736,2.51869921,2281.2,2280.4,0.00381608]
[1770189469931,6.90429921,2281.0,2280.4,0.00381608]
[1770189470132,2.51869921,2281.0,2280.4,0.00381608]
[1770189470334,6.90429921,2280.9,2280.4,0.00381608]
[1770189470540,2.51869921,2280.9,2280.4,0.00381608]
[1770189470738,6.90429921,2280.9,2280.4,0.00381608]
[1770189471141,2.51856847,2280.8,2280.4,0.00381608]
[1770189471337,2.51856847,2280.8,2279.8,0.1098]
[1770189472343,6.90416847,2280.8,2279.8,0.11114176]
[1770189472847,2.51856847,2280.7,2279.8,0.11114176]
[1770189473143,2.52294494,2280.7,2279.8,0.11114176]
[1770189473844,2.51856847,2281.4,2280.3,0.10978]
[1770189474046,2.51856847,2281.4,2280.4,0.10977]
[1770189474644,2.52392793,2281.4,2280.5,0.10977]
[1770189475244,0.00535946,2281.4,2280.5,0.10977]
[1770189475745,0.00535946,2281.4,2280.6,0.10976]
[1770189478951,2.52384977,2281.4,2280.6,0.10976]
[1770189479145,4.3856,2281.3,2280.6,0.10976]
[1770189480240,4.3856,2281.2,2280.6,0.10976]
[1770189480439,6.90409031,2281.3,2280.6,0.10976]
[1770189480648,6.90409031,2281.2,2280.6,0.10976]
[1770189481148,4.3856,2281.1,2280.6,0.10976]
[1770189481648,0.00535946,2281.4,2280.6,0.10976]
[1770189481848,4.3856,2281.3,2280.6,0.10976]
[1770189482243,4.3856,2281.2,2280.6,0.10976]
[1770189482449,4.3856,2281.3,2280.6,0.10976]
[1770189482845,4.3856,2281.2,2280.6,0.10976]
[1770189483045,4.3856,2281.3,2280.6,0.10976]
[1770189483449,4.3856,2281.2,2280.6,0.10976]
[1770189483647,4.3856,2281.3,2280.6,0.10976]
[1770189484150,0.00535946,2281.4,2280.6,0.10976]
[1770189484349,4.3856,2281.3,2280.6,3.96776]
[1770189484748,6.90409031,2281.2,2280.6,3.96776]
[1770189484949,2.51849031,2281.2,2280.6,3.96776]
[1770189485151,6.90409031,2280.9,2280.6,3.858]
[1770189485448,2.51849031,2280.9,2280.3,3.858]
[1770189486049,6.90409031,2280.9,2280.3,3.858]
[1770189487650,2.51849031,2281.2,2280.3,3.96778]
[1770189487845,2.51849031,2281.2,2280.4,0.10977]
[1770189488241,6.90409031,2281.1,2280.4,0.10977]
[1770189488446,2.51849031,2281.1,2280.4,0.10977]
[1770189488641,4.3856,2280.9,2280.4,0.10977]
[1770189489047,4.3856,2280.8,2280.4,0.10977]
[1770189489248,4.3856,2280.9,2280.4,0.10977]
[1770189489650,4.3856,2280.8,2280.4,0.10977]
[1770189490051,4.3856,2280.7,2280.4,0.10977]
[1770189490353,2.51849031,2280.9,2280.4,0.10977]
[1770189490354,4.3856,2280.8,2280.4,3.96777]
[1770189490751,4.3856,2280.7,2280.4,3.96777]
[1770189490952,2.5149943,2280.6,2280.0,3.858]
[1770189491250,2.5149943,2280.6,2279.9,3.858]
[1770189491454,2.5149943,2280.6,2279.8,0.11114176]
[1770189492750,2.5149943,2280.6,2279.8,0.00134176]
[1770189493054,2.5149943,2280.6,2279.5,3.858]
[1770189493256,2.5149943,2280.6,2279.3,3.858]
[1770189494053,2.5149943,2280.6,2279.3,3.86237647]
[1770189494955,2.5149943,2280.6,2279.3,0.00437647]
[1770189495157,2.51849031,2280.5,2279.3,0.00437647]
[1770189495448,2.51849031,2280.5,2278.7,4.38220704]
[1770189495757,2.51849031,2280.5,2278.6,0.10986]
[1770189500558,2.51849031,2280.5,2278.9,0.10984]
[1770189503561,2.51849031,2280.5,2279.2,0.10983]
[1770189506959,2.51904197,2280.3,2278.3,5.1473958]
[1770189507158,2.51904197,2279.9,2278.0,0.10989]
[1770189507359,2.51904197,2279.7,2278.0,0.10989]
[1770189507559,2.52376311,2279.7,2278.0,4.48427448]
[1770189507757,2.52376311,2279.7,2278.1,4.37438448]
[1770189507962,2.52376311,2279.7,2278.0,0.10989]
[1770189509465,2.51904197,2279.5,2278.0,0.10989]
[1770189511067,2.51904197,2279.3,2278.0,0.10989]
[1770189512169,2.51904197,2279.3,2277.4,2.03407416]
[1770189512468,2.51904197,2279.1,2277.5,3.858]
[1770189512667,2.51904197,2279.1,2277.6,4.36768123]
[1770189513670,2.51904197,2279.1,2277.8,0.1099]
[1770189514970,2.51904197,2279.1,2277.5,3.858]
[1770189516673,2.51904197,2279.1,2277.6,3.858]
[1770189516869,2.51904197,2279.1,2277.2,0.10993]
[1770189516870,2.62888197,2279.1,2277.2,0.10993]
[1770189517073,2.51904197,2278.7,2277.2,0.10993]
[1770189517275,2.51904197,2278.7,2277.0,4.35433783]
[1770189517572,2.51904197,2278.5,2276.8,5.1473958]
[1770189517972,2.51904197,2278.5,2276.9,0.10994]
[1770189519472,2.51904197,2278.5,2277.0,2.14400416]
[1770189519672,2.51904197,2278.3,2277.0,2.14400416]
[1770189520174,2.51904197,2278.5,2277.4,2.03407416]
[1770189521185,0.10982,2279.4,2277.4,2.03407416]
[1770189521186,0.00472114,2279.7,2278.3,2.33754912]
[1770189521678,0.858,2279.6,2278.5,2.33754912]
[1770189521979,0.00472114,2279.7,2278.5,2.33754912]
[1770189522283,1.203,2279.6,2278.5,2.33754912]
[1770189522973,2.30563497,2279.5,2278.5,2.33754912]
[1770189523583,2.30563497,2279.5,2278.2,2.34261197]
[1770189527176,2.30563497,2279.5,2278.3,0.10987]
[1770189527377,4.392,2279.4,2278.6,2.48154506]
[1770189527575,8.22963497,2279.4,2278.6,2.48154506]
[1770189527778,43.10563497,2279.6,2278.7,0.10985]
[1770189527972,2.30563497,2279.6,2278.7,2.48153506]
[1770189528177,3.204,2279.5,2278.7,2.48153506]
[1770189530079,0.00472114,2279.7,2278.8,2.35063172]
[1770189530275,40.8,2280.3,2278.8,2.35063172]
[1770189530276,2.30563497,2280.2,2279.4,2.46045172]
[1770189530584,2.30563497,2280.5,2279.4,2.46045172]
[1770189530784,2.39546938,2280.3,2279.4,0.10982]
[1770189531277,2.39926455,2280.3,2279.4,0.11434485]
[1770189532079,2.39926455,2280.3,2279.4,0.00452485]
[1770189532386,2.39926455,2280.3,2278.8,0.10985]
[1770189534985,2.39926455,2280.3,2278.9,2.34398533]
[1770189535184,5.60046938,2280.2,2279.1,2.34398533]
[1770189535385,7.596,2280.1,2279.4,0.10982]
[1770189535693,7.596,2280.1,2279.4,3.96782]
[1770189536286,9.99146938,2280.1,2279.4,3.96782]
[1770189538489,2.41422341,2280.0,2279.4,3.96782]
[1770189540084,2.41422341,2280.0,2279.4,0.10982]
[1770189540283,7.596,2280.1,2279.4,0.10982]
[1770189541392,4.39,2280.5,2279.7,2.38754047]
[1770189541691,1.838,2280.4,2279.7,2.38754047]
[1770189541890,4.25222341,2280.4,2279.7,0.10981]
[1770189542490,4.25638455,2280.4,2279.7,0.11330458]
[1770189542990,1.84216114,2280.4,2279.7,6.24903505]
[1770189543390,2.41422341,2280.3,2279.7,3.97130458]
[1770189544086,2.41422341,2280.3,2279.7,3.858]
[1770189544392,2.41422341,2280.3,2279.0,2.27773047]
[1770189544994,6.771,2280.2,2279.3,2.27773047]
[1770189546087,2.41422341,2280.3,2279.4,2.38755047]
[1770189546288,4.76222341,2280.3,2279.4,2.38755047]
[1770189546597,2.383,2280.2,2279.6,2.38754047]
[1770189548091,2.264,2280.2,2279.6,2.38754047]
[1770189548891,2.264,2280.2,2279.6,0.10981]
[1770189549098,2.41422341,2280.1,2279.2,1.25544208]
[1770189550599,2.41422341,2280.0,2278.6,6.16659108]
[1770189550799,2.41422341,2280.0,2278.6,2.27773047]
[1770189551002,2.41422341,2280.0,2278.6,4.88093132]
[1770189551203,2.41422341,2279.8,2278.6,4.88093132]
[1770189552696,2.41422341,2279.8,2278.6,2.27773047]
[1770189553000,2.41422341,2279.8,2278.6,2.38759047]
[1770189553199,2.41422341,2279.8,2278.7,2.27773047]
[1770189554703,7.589,2279.7,2278.8,2.27773047]
[1770189555202,7.589,2279.7,2278.8,2.38758047]
[1770189555703,2.41422341,2279.6,2278.8,0.10985]
[1770189556001,2.41422341,2279.6,2278.6,2.60320085]
[1770189556202,2.41422341,2279.6,2278.5,2.60320085]
[1770189556397,2.41422341,2279.6,2278.4,3.85864293]
[1770189557301,2.41422341,2279.6,2278.5,2.27773047]
[1770189559305,2.41422341,2279.6,2278.4,3.85864293]
[1770189559503,2.41422341,2279.6,2278.3,0.10987]
[1770189560002,2.41422341,2279.6,2278.1,2.60320085]
[1770189560303,2.41422341,2279.6,2277.7,6.57882552]
[1770189560304,2.41422341,2279.5,2277.8,2.60320085]
[1770189560499,2.41422341,2279.5,2277.7,2.71310085]
[1770189560700,2.52405341,2279.3,2277.6,4.88093132]
[1770189561503,2.52405341,2279.3,2277.6,2.27773047]
[1770189563198,2.41422341,2279.3,2277.6,2.27773047]
[1770189563403,2.51605438,2279.2,2278.1,2.3585331]
[1770189564201,2.51605438,2279.2,2278.2,0.10988]
[1770189564505,3.195,2279.4,2278.3,2.4684031]
[1770189566006,3.195,2279.4,2278.5,2.3585331]
[1770189566309,2.951,2279.3,2278.6,2.3585331]
[1770189567807,2.51605438,2279.5,2278.6,2.3585331]
[1770189567808,2.51605438,2280.1,2278.6,2.4683931]
[1770189568008,2.51605438,2279.9,2278.8,2.3585331]
[1770189568710,7.582,2279.8,2279.0,2.3585331]
[1770189568905,10.09805438,2279.8,2279.0,2.3585331]
[1770189570111,7.582,2279.8,2279.2,2.3585331]
[1770189570712,2.51605438,2280.1,2279.2,2.3585331]
[1770189571012,2.51605438,2280.1,2279.2,2.4683631]
[1770189571213,5.249,2280.0,2279.2,2.4683631]
[1770189572209,2.51605438,2279.9,2279.2,0.10983]
[1770189574213,40.8,2280.3,2279.3,2.3585331]
[1770189574406,2.51605438,2280.1,2279.5,0.10982]
[1770189576917,2.51605438,2280.1,2279.0,6.21717603]
[1770189577115,2.51605438,2280.1,2279.0,3.61397518]
[1770189577316,2.51605438,2280.1,2279.0,6.21717603]
[1770189578218,2.51605438,2280.1,2279.0,4.96173395]
[1770189578519,2.51605438,2280.1,2279.5,0.10982]
[1770189581520,4.39,2280.2,2279.6,0.10981]
[1770189581719,6.461,2280.2,2279.6,0.10981]
[1770189582720,2.51605438,2280.1,2279.6,0.10981]
[1770189584326,2.51605438,2280.1,2278.6,3.62612323]
[1770189584523,2.51605438,2280.1,2278.6,2.44942384]
[1770189585225,0.13915595,2279.8,2278.6,2.44942384]
[1770189585824,0.13915595,2279.8,2278.6,2.55928384]
[1770189586032,8.68071814,2280.2,2279.2,2.44942384]
[1770189586033,0.0483691,2280.1,2279.2,2.44942384]
[1770189587027,0.0483691,2280.1,2278.6,2.49481726]
[1770189587228,0.0483691,2280.0,2278.6,2.49481726]
[1770189587624,40.8483691,2279.9,2278.6,2.49481726]
[1770189587830,4.4383691,2279.8,2278.6,2.49481726]
[1770189588125,0.0483691,2279.7,2278.6,2.49481726]
[1770189589629,0.0483691,2279.7,2278.5,0.10986]
[1770189589932,0.0483691,2279.7,2277.2,8.40352558]
[1770189589933,0.0483691,2279.7,2278.2,2.51900182]
[1770189591427,5.23826266,2279.6,2278.2,2.51900182]
[1770189594232,5.23826266,2279.4,2278.2,2.51900182]
[1770189594433,2.975,2279.3,2278.2,2.51900182]
[1770189594731,8.21326266,2279.3,2278.2,2.51900182]
[1770189595337,2.975,2279.3,2278.2,2.51900182]
[1770189595740,5.23826266,2279.4,2278.2,2.51900182]
[1770189596037,6.903,2279.3,2278.2,2.51900182]
[1770189596239,7.578,2279.2,2278.2,2.51900182]
[1770189597140,5.23826266,2279.6,2278.2,2.62888182]
[1770189597435,2.97,2279.2,2278.2,2.62888182]
[1770189597639,2.97,2279.2,2278.4,2.51837206]
[1770189598439,2.93,2279.3,2278.4,2.51837206]
[1770189598639,2.93,2279.3,2278.4,2.62824206]
[1770189599840,5.23826266,2279.7,2278.4,2.62824206]
[1770189600140,7.574,2279.6,2278.4,2.62824206]
[1770189601542,7.574,2279.6,2278.5,2.51837206]
[1770189602339,46.03826266,2279.9,2278.5,2.51837206]
[1770189602643,7.578,2279.8,2278.5,2.51837206]
[1770189603143,7.578,2279.8,2278.5,2.62823206]
[1770189604144,7.578,2279.8,2278.6,0.10986]
[1770189604442,7.578,2279.8,2278.7,2.51837206]
[1770189605848,5.23826266,2279.7,2278.7,2.51837206]
[1770189606052,5.23826266,2279.6,2278.7,2.51837206]
[1770189606947,5.23826266,2279.6,2278.6,0.10986]
[1770189607947,5.23826266,2279.6,2278.6,2.62823206]
[1770189608552,4.391,2279.5,2278.6,2.62823206]
[1770189608754,3.194,2279.4,2278.6,2.62823206]
[1770189612355,5.23826266,2279.6,2278.6,2.62823206]
[1770189612550,3.195,2279.3,2278.6,2.62823206]
[1770189613957,3.194,2279.3,2278.6,2.62823206]
[1770189616956,5.23826266,2279.6,2278.6,2.62823206]
[1770189617158,3.193,2279.6,2278.6,2.62823206]
[1770189617656,3.193,2279.6,2278.8,2.51837206]
[1770189620557,3.193,2279.6,2278.8,2.62822206]
[1770189621161,5.23826266,2279.7,2278.8,2.62822206]
[1770189621360,3.194,2279.6,2278.8,2.62822206]
[1770189622258,9.62926266,2280.0,2279.2,2.51823403]
[1770189622458,3.194,2279.9,2279.2,2.51823403]
[1770189623562,5.23826266,2280.0,2279.2,2.51823403]
[1770189623860,3.194,2279.9,2279.2,2.51823403]
[1770189624657,5.23826266,2280.1,2279.2,2.51823403]
[1770189624863,3.193,2280.3,2279.5,2.51823403]
[1770189625065,5.23826266,2280.1,2279.2,2.51823403]
[1770189627563,5.23826266,2280.0,2279.2,2.51823403]
[1770189628061,40.8,2279.9,2279.2,2.51823403]
[1770189629869,40.8,2279.9,2279.0,2.51823403]
[1770189630471,46.03826266,2279.9,2279.0,2.51823403]
[1770189632275,40.8,2279.9,2279.0,2.51823403]
[1770189632474,5.23826266,2279.7,2279.0,2.51823403]
[1770189632675,3.211,2279.6,2279.0,2.51823403]
[1770189634278,5.23826266,2279.7,2279.0,2.51823403]
[1770189634480,3.214,2279.6,2279.0,2.51823403]
[1770189635980,3.10225694,2279.6,2279.0,2.51823403]
[1770189636473,2.458,2279.7,2279.0,2.51823403]
[1770189636672,2.899,2279.8,2279.0,2.51823403]
[1770189636877,2.899,2279.8,2279.1,2.48328587]
[1770189637680,5.23826266,2280.1,2279.1,2.48328587]
[1770189637880,3.212,2280.1,2279.2,2.48328587]
[1770189638283,5.52508014,2280.1,2279.2,2.48328587]
[1770189638982,2.31308014,2280.0,2279.1,1.25544208]
[1770189639784,2.31308014,2279.8,2279.1,1.25544208]
[1770189641780,2.31308014,2280.0,2279.2,2.48328587]
[1770189642179,8.45026266,2280.1,2279.2,2.48328587]
[1770189642483,7.604,2280.0,2279.2,2.48328587]
[1770189642685,5.23826266,2280.1,2279.2,2.48328587]
[1770189642884,3.213,2280.0,2279.2,2.48328587]
[1770189643081,3.213,2280.0,2279.2,2.59311587]
[1770189643286,3.213,2280.0,2279.4,2.48328587]
[1770189643977,3.213,2280.0,2279.4,2.59310587]
[1770189644581,5.52608014,2280.0,2279.2,1.25544208]
[1770189644781,2.31308014,2279.9,2279.2,1.25544208]
[1770189644985,2.31308014,2279.9,2279.1,2.48328587]
[1770189645885,5.23826266,2280.0,2279.1,2.48328587]
[1770189646085,3.213,2279.8,2279.1,2.48328587]
[1770189647385,3.213,2279.8,2279.1,2.59312587]
[1770189647586,3.213,2280.0,2279.4,2.48328587]
[1770189647785,5.23826266,2280.2,2279.7,0.10981]
[1770189647986,5.52608014,2280.3,2279.7,0.10981]
[1770189648187,2.31308014,2280.3,2279.7,0.10981]
[1770189651791,2.31308014,2280.3,2279.2,5.12476821]
[1770189651991,2.31308014,2280.3,2279.2,9.16172908]
[1770189652289,2.36984701,2280.2,2279.2,2.51262835]
[1770189654992,2.36984701,2280.0,2279.2,2.51262835]
[1770189657289,2.36984701,2280.0,2279.2,2.62245835]
[1770189657790,4.39,2280.1,2279.2,2.62245835]
[1770189658993,6.71724954,2280.1,2279.2,2.62245835]
[1770189659294,2.32724954,2280.0,2279.2,2.62245835]
[1770189661696,2.32724954,2279.9,2279.2,1.36527208]
[1770189663196,2.32724954,2279.9,2279.2,3.65394972]
[1770189663392,2.32724954,2279.9,2279.2,1.36527208]
[1770189665692,2.32724954,2279.9,2279.2,3.65394972]
[1770189665992,2.32724954,2279.9,2279.2,2.39850764]
[1770189668600,5.23826266,2280.0,2279.2,2.39850764]
[1770189668902,7.5655122,2280.0,2279.2,2.39850764]
[1770189670299,2.32724954,2280.0,2279.2,2.39850764]
[1770189673803,7.5655122,2280.0,2279.2,2.39850764]
[1770189676607,2.32724954,2280.0,2279.2,2.39850764]
[1770189678507,7.5655122,2280.0,2279.2,2.39850764]
[1770189680706,2.32724954,2279.9,2279.2,2.39850764]
[1770189683003,5.23826266,2280.0,2279.2,2.39850764]
[1770189683406,3.205,2280.2,2279.3,2.43071591]
[1770189683609,3.205,2280.2,2279.4,2.32088591]
[1770189684110,5.48931833,2280.2,2279.4,2.32088591]
[1770189686112,2.28431833,2280.1,2279.3,0.10983]
[1770189686312,2.28431833,2280.0,2279.3,0.10983]
[1770189690411,2.28431833,2280.0,2279.3,2.43071591]
[1770189692417,5.23826266,2280.1,2279.3,2.43071591]
[1770189692907,7.52258099,2280.1,2279.3,2.43071591]
[1770189695515,2.28431833,2280.0,2279.3,3.68615799]
[1770189695815,2.28431833,2280.0,2279.4,2.43070591]
[1770189697417,2.28431833,2280.0,2279.4,0.10982]
[1770189698520,2.28431833,2280.0,2279.3,1.25544208]
[1770189699522,2.28431833,2280.0,2279.4,0.10982]
[1770189704628,2.28431833,2280.0,2279.4,2.43070591]
[1770189704828,9.62826266,2280.1,2279.4,2.43070591]
[1770189705126,2.28431833,2280.0,2279.4,2.43070591]
[1770189706327,2.28431833,2280.0,2279.4,0.10982]
[1770189706826,9.62826266,2280.1,2279.4,2.43070591]
[1770189707026,11.91258099,2280.1,2279.4,2.43070591]
[1770189707829,7.52258099,2280.1,2279.4,2.43070591]
[1770189711234,2.4125492,2280.0,2279.4,2.43070591]
[1770189711930,8.94751702,2280.0,2279.1,3.92012882]
[1770189712128,2.09195014,2279.5,2278.8,0.10985]
[1770189712329,3.225,2279.4,2278.8,0.10985]
[1770189712631,5.31695014,2279.4,2278.8,0.10985]
[1770189716338,3.225,2279.4,2278.8,2.37817582]
[1770189721940,1.88186388,2280.1,2279.4,2.3030076]
[1770189722140,5.11686388,2280.1,2279.5,2.3030076]
[1770189722342,0.00416114,2280.4,2279.5,2.3030076]
[1770189722547,5.11738715,2280.3,2279.5,2.3030076]
[1770189723041,3.236,2280.3,2279.5,6.51667938]
[1770189723243,3.236,2280.3,2279.6,2.3030076]
[1770189723640,3.236,2280.3,2279.7,2.4128176]
[1770189724540,5.12530904,2280.3,2279.7,2.4128176]
[1770189725344,5.12530904,2280.3,2279.7,0.10981]
[1770189725549,1.88930904,2280.2,2279.4,2.404]
[1770189725850,1.88930904,2280.2,2279.5,2.3030076]
[1770189726044,3.236,2280.3,2279.5,2.3030076]
[1770189726241,5.02055924,2280.3,2279.5,2.3030076]
[1770189726750,1.78455924,2280.2,2279.5,2.3030076]
[1770189731352,3.236,2280.3,2279.5,2.4128276]
[1770189731551,3.236,2280.3,2279.6,0.10981]
[1770189731752,3.236,2280.3,2279.7,2.4128176]
[1770189732052,4.39416114,2280.4,2279.7,2.4128176]
[1770189732053,0.00416114,2280.4,2279.7,2.4128176]
[1770189735052,1.78763531,2280.4,2279.7,0.10981]
[1770189735253,1.78763531,2280.4,2279.3,5.20751721]
[1770189735254,1.78763531,2280.4,2279.3,2.3030076]
[1770189735753,1.78347417,2280.2,2279.3,2.3030076]
[1770189736556,1.79207919,2279.9,2279.2,2.51383]
[1770189736849,1.79207919,2279.9,2279.2,4.8168376]
[1770189737055,1.79207919,2280.2,2279.3,2.3030076]
[1770189740555,2.44175354,2279.5,2278.5,1.43927301]
[1770189740751,2.44175354,2279.5,2278.7,0.10985]
[1770189742656,2.44175354,2279.5,2278.7,2.38816567]
[1770189745258,2.44175354,2279.5,2278.8,2.27831567]
[1770189747554,2.37370924,2279.7,2279.2,2.27831567]
[1770189747761,5.58470924,2280.1,2279.3,3.71758868]
[1770189748259,5.58470924,2280.1,2279.4,2.27831567]
[1770189750762,2.37370924,2280.0,2279.2,2.27831567]
[1770189750956,2.37370924,2280.0,2279.1,1.54910301]
[1770189751158,2.37370924,2280.0,2279.1,0.10983]
[1770189751360,2.37370924,2280.0,2279.1,2.38814567]
[1770189752061,3.81298225,2280.0,2279.1,0.10983]
[1770189752357,2.37370924,2279.9,2279.1,2.38814567]
[1770189753161,2.37370924,2279.9,2279.1,3.82741868]
[1770189754356,5.24693647,2280.2,2279.2,2.27831567]
[1770189754564,2.37787038,2280.4,2279.8,1.43927301]
[1770189754760,2.37787038,2280.4,2279.7,0.1098]
[1770189757058,2.37787038,2280.4,2279.7,2.38811567]
[1770189759464,2.37370924,2281.2,2279.9,2.27831567]
[1770189759668,2.37370924,2281.2,2280.2,2.27831567]
[1770189759958,7.84193837,2281.8,2279.8,4.17022833]
[1770189759959,2.37370924,2281.5,2280.7,2.27831567]
[1770189760160,2.37370924,2281.5,2280.8,0.10975]
[1770189760559,2.37370924,2281.4,2279.9,2.27831567]
[1770189760758,2.37370924,2281.1,2279.6,6.55314845]
[1770189760958,2.37370924,2281.1,2278.8,0.34416142]
[1770189760959,2.37370924,2280.6,2279.1,2.27831567]
[1770189761164,2.37370924,2280.6,2278.9,2.27831567]
[1770189761464,2.48347924,2280.5,2278.6,2.27831567]
[1770189761661,2.37370924,2280.3,2278.6,2.27831567]
[1770189761858,2.37370924,2280.1,2278.6,2.27831567]
[1770189762159,2.37370924,2279.9,2278.3,2.27831567]